[Event "87th Spanish Championship 2022"]
[Site "Linares"]
[Date "2022.08.17"]
[Round "8.8"]
[White "Narciso Dublan, Marc"]
[Black "Silva Lucena, Cristian"]
[Result "1-0"]
[ECO "A45"]
[WhiteElo "2461"]
[BlackElo "2212"]
[Annotator "TA"]
[PlyCount "139"]
[EventDate "2022.08.11"]
[EventType "swiss"]
[EventCountry "ESP"]
[SourceTitle "playchess.com"]
[Source "ChessBase"]
[SourceQuality "1"]
[TimeControl "5400+30"]

{[%evp 9,139,2,4,-1,16,35,43,0,0,7,20,7,19,0,23,20,25,0,20,0,0,-14,0,-72,-82,-59,-53,-56,-68,-102,-102,-101,-93,-92,-92,-108,0,0,0,-31,-6,-8,0,0,93,101,106,112,148,153,136,141,134,129,191,190,241,250,244,243,219,210,271,275,259,241,328,328,361,361,361,347,337,330,527,525,521,516,520,520,518,513,506,458,443,194,919,910,752,114,665,674,1800,1141,1076,869,12839,12839,12841,12842,12845,12844,12849,12846,12846,12847,12848,12848,12849,12848,12850,12850,12850,27997,27998,27998,27999,27999,27998,27998,27999,27999,27996,27996,27997,27997,27998,27998,27999,27999,27999,27999]} 1. d4 {[%emt 0:00:05]} Nf6 {[%emt 0:00:08]} 2. Bg5 {[%emt 0:00:10]} d5 {[%emt 0:00:07]} 3. e3 {[%emt 0:02:43]} c5 {[%emt 0:00:12]} 4. Bxf6 {[%emt 0:03:28]} gxf6 {[%emt 0:00:21]} 5. Bb5+ {[%emt 0:00:39]} Nc6 {[%emt 0:02:46]} 6. dxc5 {[%emt 0:00:37] D00: 1 d4 d5: Unusual lines.} Qa5+ {[%emt 0:00:30]} 7. Nc3 {[%emt 0:00:03]} a6 {[%emt 0:00:10]} 8. Bxc6+ {[%emt 0:02:51] White is slightly better.} (8. Ba4 $5 {[%cal Rd1d5]}) 8... bxc6 {[%emt 0:00:07] [#]} 9. Nge2 $146 {[%emt 0:01:59]} ({Predecessor:} 9. Qd4 Rb8 10. O-O-O Rb4 11. Qd2 Qxc5 12. Nge2 e5 13. f4 Qb6 14. b3 Bc5 15. Kb2 Bxe3 16. Nxd5 cxd5 17. Qxd5 {0-1 (28) Reinert,S (2097)-Suvorov,A (2392) Tegernsee 2021}) 9... Qxc5 {[%emt 0:01:16]} 10. O-O {[%emt 0:00:50]} Bg4 {[%emt 0:04:02]} 11. Qd2 {[%emt 0:10:38]} Rg8 {[%emt 0:02:11]} 12. Kh1 {[%emt 0:02:54]} e5 {[%emt 0:06:42]} 13. f4 {[%emt 0:03:50]} Rb8 {[%emt 0:01:26]} 14. fxe5 {[%emt 0:07:56]} fxe5 {[%emt 0:01:59]} 15. Ng3 {[%emt 0:00:19]} Rg6 {[%emt 0:03:04]} (15... Rxb2 $2 16. Nge4 $1 {[%mdl 512]} Qc4 17. Nf6+ Kd8 18. Nxg8 $18) 16. Na4 {[%emt 0:07:37]} (16. b3 $1 $11 {keeps the balance.}) 16... Qb4 $36 {[%emt 0:02:03][%mdl 2048] Black is in control.} 17. Qf2 {[%emt 0:00:50]} Be6 {[%emt 0:00:46]} 18. b3 {[%emt 0:00:15][%cal Oe3e4]} Qh4 $1 {[%emt 0:01:30] Inhibits e4.} 19. Nf5 {[%emt 0:14:33]} Qxf2 {[%emt 0:06:15]} 20. Rxf2 {[%emt 0:00:04]} Rb4 {[%emt 0:00:13]} 21. Raf1 {[%emt 0:04:24]} Rbg4 {[%emt 0:01:48]} 22. g3 {[%emt 0:04:19]} d4 {[%emt 0:06:01]} (22... R6g5 $17 23. Rf3 Rh5) 23. exd4 $11 {[%emt 0:02:32]} exd4 {[%emt 0:00:08]} 24. Rf4 {[%emt 0:02:41]} Bd5+ {[%emt 0:04:42]} 25. Kg1 {[%emt 0:00:04]} Rxf4 {[%emt 0:00:27]} 26. Rxf4 {[%emt 0:00:05]} Re6 {[%emt 0:00:50]} (26... c5 $11 {remains equal.}) 27. Nxd4 $16 {[%emt 0:08:24] Pair of Knights!} Re1+ {[%emt 0:02:41]} 28. Kf2 {[%emt 0:00:49]} Rd1 {[%emt 0:00:06]} 29. Ke2 {[%emt 0:05:16] Prevents Rd2+.} Rh1 {[%emt 0:02:05]} 30. Rh4 {[%emt 0:00:24]} Be7 {[%emt 0:00:14]} 31. Rxh7 {[%emt 0:00:45]} Bf6 {[%emt 0:00:17] [#] Prevents Rh8+.} (31... Be4 $16 32. Rh8+ Kd7) 32. Nf5 $1 $18 {[%emt 0:01:58]} Be6 {[%emt 0:00:54] [#]} (32... Ra1 {was necessary.} 33. Rh6 Be5) 33. Ne3 $1 {[%emt 0:02:13]} Bd4 {[%emt 0:00:36]} 34. Kd3 {[%emt 0:04:08]} Ba7 {[%emt 0:00:12]} 35. Rh5 {[%emt 0:00:57]} Ke7 {[%emt 0:01:10]} 36. Nc5 {[%emt 0:01:20]} Bc8 {[%emt 0:01:35]} 37. h4 {[%emt 0:02:53]} Rh3 {[%emt 0:00:53]} 38. Ne4 {[%emt 0:01:18]} Rh1 {[%emt 0:00:59]} 39. Rh8 {[%emt 0:01:20]} Re1 {[%emt 0:03:14]} 40. Rxc8 {[%emt 0:00:18] Rc7+ is the strong threat.} Rxe3+ {[%emt 0:00:12][%mdl 4096] Endgame KRB-KRN} 41. Kd2 {[%emt 0:00:03]} Kd7 {[%emt 0:00:23] [#] Inhibits Rc7+.} (41... Bd4 $142 42. Rc7+ (42. Rxc6 Rxe4 43. Kd3 f5 $18) 42... Kd8 43. Rxc6 Rxe4) 42. Ra8 $1 {[%emt 0:00:24]} Bd4 {[%emt 0:00:06]} (42... Bb6 43. Rxa6) 43. c3 {[%emt 0:01:38]} Rxe4 {[%emt 0:00:31]} 44. cxd4 {[%emt 0:00:08] KR-KR} Rg4 {[%emt 0:00:14]} 45. Rxa6 {[%emt 0:01:23]} Rxg3 {[%emt 0:00:04]} 46. Ra5 {[%emt 0:00:22]} Rg4 {[%emt 0:00:19]} 47. d5 {[%emt 0:00:55]} (47. Kc3 $142) 47... Rxh4 $2 {[%emt 0:00:31]} (47... cxd5 48. Rxd5+ Ke6) 48. dxc6+ {[%emt 0:00:21]} ({Not} 48. Ra7+ Kd6 $16) 48... Kxc6 {[%emt 0:00:07]} 49. Kc3 $2 {[%emt 0:00:07]} (49. a4 $18 {is the precise move to win. aiming for Rf5.} Rh3 50. Kc2) 49... Rf4 {[%emt 0:00:28][%mdl 8192] Prevents Rf5. A mistake that costs the game.} (49... Rh3+ $16 50. Kb4 Rh4+ 51. Ka3 Kd7) 50. a4 {[%emt 0:00:23][%cal Ba2a4,Ba4a5,Ba5a6][%mdl 32]} f5 {[%emt 0:00:05]} 51. Ra6+ {[%emt 0:00:41]} Kd5 {[%emt 0:00:22]} 52. Rf6 {[%emt 0:00:29]} Rf1 {[%emt 0:00:09]} 53. Kb4 {[%emt 0:00:33]} f4 {[%emt 0:00:01]} 54. a5 {[%emt 0:00:29]} f3 {[%emt 0:00:02]} 55. Kb5 {[%emt 0:00:23]} f2 {[%emt 0:00:24]} 56. b4 {[%emt 0:00:10]} Ke5 {[%emt 0:00:17]} 57. Rf8 {[%emt 0:00:18]} Kd6 {[%emt 0:00:06]} 58. a6 {[%emt 0:00:42]} Kc7 {[%emt 0:00:12]} 59. Rf7+ {[%emt 0:00:36]} Kc8 {[%emt 0:00:08]} 60. a7 {[%emt 0:01:10][%cal Ra7a8]} Ra1 {[%emt 0:00:24]} 61. Rxf2 {[%emt 0:00:17]} Rxa7 {[%emt 0:00:11] White mates.} 62. Rf8+ {[%emt 0:00:04]} Kb7 {[%emt 0:00:06]} 63. Rf7+ {[%emt 0:00:05]} Kb8 {[%emt 0:00:25]} 64. Rxa7 {[%emt 0:00:06]} Kxa7 {[%emt 0:00:07] KP-K} 65. Kc6 {[%emt 0:00:04]} Ka6 {[%emt 0:00:12]} 66. b5+ {[%emt 0:00:24][%cal Bb4b5,Bb5b6][%mdl 32]} Ka7 {[%emt 0:00:04]} 67. Kc7 {[%emt 0:00:18]} Ka8 {[%emt 0:00:11]} 68. Kb6 {[%emt 0:00:08]} Kb8 {[%emt 0:00:08]} 69. Ka6 {[%emt 0:00:04]} Ka8 {[%emt 0:00:22]} 70. b6 {[%emt 0:00:07] Weighted Error Value: White=0.33/Black=0.40} 1-0

[Event "87th Spanish Championship 2022"]
[Site "Linares"]
[Date "2022.08.17"]
[Round "8.9"]
[White "Vega Gutierrez, Sabrina"]
[Black "Plazuelo Pascual, Juan"]
[Result "1/2-1/2"]
[ECO "B32"]
[WhiteElo "2366"]
[BlackElo "2448"]
[Annotator "TA"]
[PlyCount "76"]
[EventDate "2022.08.11"]
[EventType "swiss"]
[EventCountry "ESP"]
[SourceTitle "playchess.com"]
[Source "ChessBase"]
[SourceQuality "1"]
[TimeControl "5400+30"]

{[%evp 10,76,29,25,31,22,31,22,25,21,26,31,29,23,25,15,11,0,22,2,15,23,35,0,0,-35,18,11,8,20,14,16,85,30,30,0,0,0,0,0,0,0,0,0,0,0,0,0,0,0,0,-49,0,0,0,0,0,0,0,0,57,0,0,0,0,0,0,0,0]} 1. e4 {[%emt 0:00:04]} c5 {[%emt 0:00:11]} 2. Nf3 {[%emt 0:00:07]} Nc6 {[%emt 0:00:12]} 3. d4 {[%emt 0:00:09]} cxd4 {[%emt 0:00:17]} 4. Nxd4 {[%emt 0:00:08]} e5 {[%emt 0:00:04]} 5. Nb5 {[%emt 0:00:07]} d6 {[%emt 0:00:06]} 6. c4 {[%emt 0:00:07]} g6 {[%emt 0:01:00] 6...Be6 is becoming the main line. B32: Sicilian: Löwenthal and Kalashnikov Variations.} 7. Bd3 {[%emt 0:00:16]} Nf6 {[%emt 0:02:18]} 8. N1c3 {[%emt 0:05:11]} a6 {[%emt 0:00:48]} 9. Na3 {[%emt 0:00:09]} Bg7 {[%emt 0:02:42]} 10. O-O {[%emt 0:00:20] [#]} O-O $146 {[%emt 0:01:22]} ({Predecessor:} 10... Be6 11. Nc2 Rc8 12. Nd5 Bxd5 13. cxd5 Nd4 14. Nxd4 exd4 15. Bg5 h6 16. Bh4 Qa5 {1-0 (59) Zawadzka,J (2409)-Kulon,K (2305) Kruszwica 2022}) 11. Nc2 {[%emt 0:00:18]} Be6 {[%emt 0:02:12]} 12. Nd5 {[%emt 0:01:29]} Nd7 {[%emt 0:03:39]} 13. Be3 {[%emt 0:01:27]} Rc8 {[%emt 0:03:55]} 14. Qd2 {[%emt 0:09:49]} Bxd5 {[%emt 0:06:54]} 15. cxd5 {[%emt 0:01:49]} Nd4 {[%emt 0:00:46]} 16. Rfc1 {[%emt 0:07:28]} (16. Bg5 $5 {[%cal Rg5d8]} Qb6 17. b4 $11) 16... Nc5 {[%emt 0:03:10]} 17. b4 {[%emt 0:06:56]} Na4 {[%emt 0:04:05]} (17... Nxd3 $15 18. Qxd3 {[#]} Rc3 $1) 18. Bf1 {[%emt 0:01:02][%cal Rc2d4]} Nc3 {[%emt 0:15:07] Pair of Knights!} 19. f3 {[%emt 0:24:58][%cal Rc2d4]} Qb6 {[%emt 0:01:04]} 20. Kh1 {[%emt 0:00:06]} a5 {[%emt 0:11:06]} (20... f5 $11) 21. b5 {[%emt 0:02:07]} (21. bxa5 $16 Qb2 22. Bd3 (22. Nxd4 Qxd2 23. Bxd2 exd4 $14) (22. Bxd4 exd4 23. Bd3 Rc5 $15)) 21... Qc5 $11 {[%emt 0:04:07]} 22. a4 {[%emt 0:13:15]} Nb3 $1 {[%emt 0:08:35]} 23. Qe1 {[%emt 0:00:32]} Qc7 {[%emt 0:00:32]} 24. Na3 $1 {[%emt 0:02:52]} Nxa1 {[%emt 0:11:12]} 25. b6 $1 {[%emt 0:00:02]} Qd7 {[%emt 0:00:23][%cal Oa1b3]} 26. Rxc3 {[%emt 0:00:05]} Rxc3 {[%emt 0:02:17]} 27. Qxc3 {[%emt 0:00:03] [#] aiming for Bb5.} Qxa4 {[%emt 0:00:08]} 28. Qxa1 {[%emt 0:00:06] Threatens to win with Qc1.} Rc8 {[%emt 0:05:58] Against Qc1} 29. Qb2 {[%emt 0:02:16] Inhibits Qb3.} f5 {[%emt 0:02:48]} 30. Nb5 {[%emt 0:01:08]} (30. exf5 $11 {feels stronger.} gxf5 31. Nb5) 30... Qd1 {[%emt 0:06:29]} (30... f4 $1 $15 31. Bg1 (31. Nxd6 $2 Rc2 $19) 31... Rc2) 31. Kg1 $1 {[%emt 0:04:10]} Rc2 {[%emt 0:00:03]} 32. Qa3 {[%emt 0:00:55]} Bf8 {[%emt 0:01:31] ...f4 is the strong threat.} 33. Qd3 {[%emt 0:10:09]} ({Don't blunder} 33. Qxa5 $2 f4 34. Bf2 Rc1 $19) ({But not} 33. Nxd6 $2 fxe4 34. fxe4 Qe1 $19) 33... Qxd3 {[%emt 0:00:38]} 34. Bxd3 {[%emt 0:00:02]} Rb2 {[%emt 0:00:05]} (34... Ra2 $1 $11) 35. Kf1 {[%emt 0:00:16]} ({Not} 35. exf5 $2 Rb3 36. Bc4 Rxe3 $19) (35. Bc1 $1 $14 Rb3 36. Bf1) 35... Rb3 {[%emt 0:01:08] The position is equal.} 36. Ke2 {[%emt 0:00:33] Strongly threatening Bc1.} Rb2+ $1 {[%emt 0:00:01]} 37. Kf1 {[%emt 0:02:10] Hoping for Bc1.} Rb3 {[%emt 0:00:03]} 38. Ke2 {[%emt 0:00:05] And now Bc1 would win.} Rb2+ $1 {[%emt 0:00:02] Weighted Error Value: White=0.09 (flawless) /Black=0.11 (very precise)} 1/2-1/2

[Event "87th Spanish Championship 2022"]
[Site "Linares"]
[Date "2022.08.17"]
[Round "8.10"]
[White "Martinez-Conde Hernandez, Carlos"]
[Black "Asis Gargatagli, Hipolito"]
[Result "*"]
[WhiteElo "2205"]
[BlackElo "2514"]
[Annotator "TA"]
[PlyCount "33"]
[EventDate "2022.08.11"]
[EventType "swiss"]
[EventCountry "ESP"]
[SourceTitle "playchess.com"]
[Source "ChessBase"]
[SourceQuality "1"]
[TimeControl "5400+30"]

{[%evp 11,33,17,6,25,39,30,56,14,32,0,-4,-22,-10,0,-18,-14,-24,-34,10,-53,-49,-51,-38,-72]} 1. e4 {[%emt 0:00:05]} c5 {[%emt 0:00:05]} 2. Nf3 {[%emt 0:00:09]} d6 {[%emt 0:00:04]} 3. d4 {[%emt 0:00:08]} cxd4 {[%emt 0:00:06]} 4. Nxd4 {[%emt 0:00:06]} Nf6 {[%emt 0:00:04]} 5. Nc3 {[%emt 0:00:07]} a6 {[%emt 0:00:04]} 6. Bg5 {[%emt 0:00:27]} Nbd7 {[%emt 0:00:05]} 7. Qe2 {[%emt 0:00:08] 7.Qe2 is the modern continuation. B94: Sicilian Najdorf: 6 Bg5 Nbd7.} Qa5 {[%emt 0:00:05]} 8. Bd2 {[%emt 0:00:31]} h5 {[%emt 0:00:17] [#]} 9. h3 $146 {[%emt 0:08:36] White is slightly better.} ({Predecessor:} 9. f4 e5 10. Nb3 Qc7 11. O-O-O b5 12. Nd5 Nxd5 13. exd5 g6 14. Kb1 Bg7 15. h3 {½-½ (33) Balzert,A (2305)-Kavc,A (2270) ICCF email 2019}) 9... g6 {[%emt 0:04:10]} 10. Nb3 {[%emt 0:02:31]} Qc7 {[%emt 0:00:12]} 11. O-O-O {[%emt 0:01:37]} Bg7 {[%emt 0:02:40]} 12. g3 {[%emt 0:09:52]} b5 {[%emt 0:13:30]} 13. Bg2 {[%emt 0:00:50][%cal Oe4e5] [#] e5! is the strong threat.} Rb8 {[%emt 0:00:24]} 14. Kb1 {[%emt 0:14:12]} e6 {[%emt 0:15:11] Inhibits Nd5.} 15. Bf4 {[%emt 0:13:37]} ({White should try} 15. a3 $1 $11) 15... Ne5 $15 {[%emt 0:01:39]} 16. Bxe5 {[%emt 0:00:05]} dxe5 {[%emt 0:00:04]} 17. Rhe1 {[%emt 0:06:09] Weighted Error Value: White=0.20 (precise) /Black=0.10 (very precise)} *

[Event "87th Spanish Championship 2022"]
[Site "Linares"]
[Date "2022.08.17"]
[Round "8.11"]
[White "Domingo Nunez, Ruben"]
[Black "Espinosa Aranda, Angel"]
[Result "1/2-1/2"]
[ECO "B47"]
[WhiteElo "2361"]
[BlackElo "2439"]
[Annotator "TA"]
[PlyCount "52"]
[EventDate "2022.08.11"]
[EventType "swiss"]
[EventCountry "ESP"]
[SourceTitle "playchess.com"]
[Source "ChessBase"]
[SourceQuality "1"]
[TimeControl "5400+30"]

{[%evp 25,52,0,0,0,0,0,0,0,0,0,0,0,0,0,0,0,0,0,0,0,0,0,0,0,0,0,0,0,0]} 1. e4 {[%emt 0:00:05]} c5 {[%emt 0:02:52]} 2. Nf3 {[%emt 0:00:11]} e6 {[%emt 0:00:23]} 3. d4 {[%emt 0:00:29]} cxd4 {[%emt 0:00:07]} 4. Nxd4 {[%emt 0:00:05]} Nc6 {[%emt 0:00:22]} 5. Nc3 {[%emt 0:00:34]} Qc7 {[%emt 0:00:41]} 6. Be2 {[%emt 0:00:08]} Nf6 {[%emt 0:00:40]} 7. O-O {[%emt 0:00:40]} Be7 {[%emt 0:00:38]} 8. Be3 {[%emt 0:00:15]} O-O {[%emt 0:00:37]} 9. f4 {[%emt 0:00:16]} d6 {[%emt 0:00:23]} 10. Qe1 {[%emt 0:02:36]} Nxd4 {[%emt 0:03:01]} 11. Bxd4 {[%emt 0:00:21]} e5 {[%emt 0:00:20]} 12. fxe5 {[%emt 0:02:39]} dxe5 {[%emt 0:00:09]} 13. Qg3 {[%emt 0:00:06]} Bc5 {[%emt 0:02:04] The position is equal.} 14. Bxc5 {[%emt 0:01:45] B83: Sicilian Scheveningen: 6 Be2, lines without ...a6.} Qxc5+ {[%emt 0:00:08]} 15. Kh1 {[%emt 0:00:04] [#] Rxf6 is the strong threat.} Kh8 {[%emt 0:00:53]} 16. Rxf6 {[%emt 0:04:30]} gxf6 {[%emt 0:00:12]} 17. Qh4 {[%emt 0:00:06]} Rg8 $1 {[%emt 0:03:23] [#]} 18. Qxf6+ $146 {[%emt 0:00:18]} ({Predecessor:} 18. Nd5 Rg7 19. b4 Qxc2 20. Bf3 Be6 21. Nxf6 Rc8 22. Rd1 Qc1 23. Nd5 Qg5 24. Qxg5 Rxg5 {0-1 (39) Mustaps,M (2189)-Kiselev,P (2036) Peterhof 2007}) 18... Rg7 {[%emt 0:00:05]} 19. Qd8+ {[%emt 0:01:26]} Rg8 {[%emt 0:00:08]} 20. Qf6+ {[%emt 0:00:04]} Rg7 {[%emt 0:00:04]} 21. Rd1 {[%emt 0:00:23] [#] White wants to mate with Rd8+.} Be6 {[%emt 0:00:38]} 22. Rd8+ {[%emt 0:00:07]} Rxd8 {[%emt 0:00:05]} 23. Qxd8+ {[%emt 0:00:04]} Rg8 {[%emt 0:00:04]} 24. Qf6+ {[%emt 0:00:05]} Rg7 {[%emt 0:00:04]} 25. Qd8+ {[%emt 0:00:07]} Rg8 {[%emt 0:00:04]} 26. Qf6+ {[%emt 0:00:15]} Rg7 {[%emt 0:00:06] A balanced but interesting game.  Weighted Error Value: White=0.00 (flawless) /Black=0.00 (flawless)} 1/2-1/2

[Event "87th Spanish Championship 2022"]
[Site "Linares"]
[Date "2022.08.17"]
[Round "8.12"]
[White "Moreno Tejera, Emilio"]
[Black "Fernandez Lopez, Ruben"]
[Result "1-0"]
[ECO "B92"]
[WhiteElo "2420"]
[BlackElo "2324"]
[Annotator "TA"]
[PlyCount "71"]
[EventDate "2022.08.11"]
[EventType "swiss"]
[EventCountry "ESP"]
[SourceTitle "playchess.com"]
[Source "ChessBase"]
[SourceQuality "1"]
[TimeControl "5400+30"]

{[%evp 17,71,5,8,2,0,0,0,0,0,0,25,30,29,25,43,26,27,29,36,43,45,49,43,56,51,66,63,60,50,43,71,71,92,86,77,50,48,56,114,112,477,463,570,556,710,668,719,664,5062,5062,2647,2230,29984,29986,29984,29985]} 1. e4 {[%emt 0:00:04]} c5 {[%emt 0:00:06]} 2. Nf3 {[%emt 0:00:09]} d6 {[%emt 0:00:04]} 3. d4 {[%emt 0:00:06]} cxd4 {[%emt 0:00:04]} 4. Nxd4 {[%emt 0:00:06]} Nf6 {[%emt 0:00:05]} 5. Nc3 {[%emt 0:00:06]} a6 {[%emt 0:00:03]} 6. Be2 {[%emt 0:00:10]} e5 {[%emt 0:00:06]} 7. Nb3 {[%emt 0:00:05]} Be7 {[%emt 0:00:04]} 8. O-O {[%emt 0:00:07]} O-O {[%emt 0:00:04]} 9. Qd3 {[%emt 0:00:11]} Be6 {[%emt 0:00:21]} 10. Bd2 {[%emt 0:00:12] B92: Sicilian Najdorf: 6 Be2.} Qc7 {[%emt 0:08:04]} 11. a4 {[%emt 0:17:41]} Nbd7 {[%emt 0:05:44] [#]} 12. Rfd1 $146 {[%emt 0:20:35] The position is equal.} ({Predecessor:} 12. Nd5 Bxd5 13. exd5 Rfc8 14. c4 a5 15. Rac1 Re8 16. Qh3 Bf8 17. g4 g6 18. Qg2 {1-0 (38) Kosakowski,J (2435)-Nasuta,G (2511) Kruszwica 2022}) 12... Rac8 {[%emt 0:11:12]} 13. a5 {[%emt 0:06:48]} Bxb3 {[%emt 0:24:38]} 14. cxb3 {[%emt 0:01:32]} Nc5 {[%emt 0:00:06][%csl LRb3,LRd3]} 15. Qc4 {[%emt 0:03:09]} Qd7 {[%emt 0:00:07][%cal Oc5e4]} 16. Qb4 {[%emt 0:06:38]} d5 {[%emt 0:10:16]} 17. Nxd5 {[%emt 0:09:35]} Nxd5 {[%emt 0:00:35]} 18. exd5 {[%emt 0:00:23]} Rfd8 {[%emt 0:02:23]} 19. Bc3 {[%emt 0:05:43]} Bd6 {[%emt 0:00:56]} 20. Qc4 {[%emt 0:04:24]} f5 {[%emt 0:00:41]} 21. b4 {[%emt 0:02:16]} Ne4 {[%emt 0:00:03]} 22. Qb3 {[%emt 0:00:13]} Qe7 {[%emt 0:02:34]} 23. Be1 {[%emt 0:03:32]} Nf6 {[%emt 0:01:35]} 24. Rac1 $36 {[%emt 0:04:16][%mdl 2048] White is in control.} e4 {[%emt 0:00:43]} 25. b5 {[%emt 0:02:32]} axb5 {[%emt 0:00:13]} 26. Qxb5 {[%emt 0:00:28]} (26. Bb4 $5) 26... Rxc1 {[%emt 0:01:49]} 27. Rxc1 {[%emt 0:00:08]} Qe5 {[%emt 0:00:22]} (27... Kh8 $14) 28. g3 $16 {[%emt 0:00:24]} f4 $2 {[%emt 0:00:51][%mdl 8192] This move loses the game for Black.} (28... Qxd5 $2 29. Bc4 Qxc4 30. Rxc4 $18) (28... Qe7 $16) 29. Qxb7 $18 {[%emt 0:00:57]} e3 {[%emt 0:03:48] [#] Threatens to win with ...exf2+.} 30. Rc8 {[%emt 0:01:25]} exf2+ {[%emt 0:00:30]} 31. Bxf2 {[%emt 0:00:12]} Rxc8 {[%emt 0:01:00]} 32. Qxc8+ {[%emt 0:00:05]} Bf8 {[%emt 0:00:04]} 33. Qe6+ {[%emt 0:01:43]} Qxe6 {[%emt 0:00:03]} 34. dxe6 {[%emt 0:00:08] [#] Hoping for a6.} Ne4 {[%emt 0:00:16]} 35. Bc4 {[%emt 0:01:18]} Be7 {[%emt 0:00:04]} 36. a6 {[%emt 0:00:33] Weighted Error Value: White=0.02 (flawless) /Black=0.64} 1-0